bitfinex/quotes_ETHUSD_20241009
["timestamp","ask_amount","ask_price","bid_price","bid_amount"]
[1728507741685,33.0,2360.0,2359.7,0.08474315]
[1728507741900,33.0,2360.0,2359.9,2.1327]
[1728507742403,33.0,2360.0,2359.9,13.936788]
[1728507742404,32.58312011,2360.0,2359.9,13.936788]
[1728507742559,32.58312011,2360.0,2359.9,16.936788]
[1728507742761,29.17159951,2360.0,2359.9,19.51254392]
[1728507743573,26.87656151,2360.0,2359.9,19.51254392]
[1728507743787,24.04286235,2360.0,2359.9,8.13335592]
[1728507744093,24.04286235,2360.0,2359.9,2.1327]
[1728507745753,24.04286235,2360.0,2359.9,1.5827]
[1728507746694,24.04286235,2360.0,2359.9,4.5827]
[1728507746994,24.04286235,2360.0,2359.9,5.1327]
[1728507747317,24.04286235,2360.0,2359.9,9.45489477]
[1728507747452,0.1185462,2361.0,2360.9,10.40151122]
[1728507747664,4.23205,2363.0,2360.9,10.40151122]
[1728507747665,4.23303,2362.4,2361.5,0.55]
[1728507747963,4.23303,2362.4,2361.4,3.0]
[1728507747964,0.44249311,2363.0,2362.3,0.55]
[1728507748166,4.23093,2363.6,2362.4,0.08463554]
[1728507748394,4.23201,2363.0,2362.3,0.55]
[1728507748595,4.23163,2363.2,2362.5,0.55]
[1728507748808,4.23184,2363.1,2362.5,0.55]
[1728507749012,4.23088,2363.6,2362.3,0.55]
[1728507749013,4.23229,2362.8,2362.3,0.55]
[1728507749322,4.23209,2362.9,2362.3,0.55]
[1728507749490,8.46429,2362.9,2362.3,0.55]
[1728507749696,4.23209,2362.9,2362.3,0.55]
[1728507750027,4.23144,2363.3,2362.5,0.55]
[1728507750341,0.1185462,2363.4,2362.7,0.55]
[1728507750342,4.3497862,2363.4,2362.7,0.55]
[1728507750627,0.1185462,2363.4,2363.0,0.55]
[1728507750831,0.1185462,2363.4,2362.9,1.5827]
[1728507750832,4.23171,2363.2,2362.9,1.5827]
[1728507751484,4.23137,2363.3,2362.9,1.5827]
[1728507752136,0.1185462,2363.4,2362.7,0.06349737]
[1728507752423,0.1185462,2363.4,2362.5,3.0]
[1728507752424,8.46472,2362.8,2362.5,1.5827]
[1728507752628,0.1185462,2363.4,2362.5,1.5827]
[1728507752629,4.23211,2362.9,2362.5,1.5827]
[1728507752919,4.3498062,2363.4,2362.5,1.5827]
[1728507752920,4.23243,2362.8,2362.5,1.5827]
[1728507753121,4.23243,2362.8,2361.8,4.29746873]
[1728507753122,4.23262,2362.6,2362.0,1.5827]
[1728507753323,4.23238,2362.8,2362.0,1.5827]
[1728507753324,4.23245,2362.7,2362.0,5.81623]
[1728507753627,4.23238,2362.8,2362.0,5.81623]
[1728507753628,4.23299,2362.4,2362.0,1.5827]
[1728507753991,4.23344,2362.2,2362.0,1.5827]
[1728507754388,4.23352,2362.1,2362.0,1.5827]
[1728507754592,4.23193,2363.0,2362.1,4.23348]
[1728507754827,4.23227,2362.8,2362.2,0.08464029]
[1728507755037,4.23193,2363.0,2362.3,4.23309]
[1728507755234,4.3498562,2363.4,2362.6,4.23262]
[1728507755536,4.3497962,2363.4,2362.7,0.55]
[1728507755689,4.3497962,2363.4,2362.9,0.55]
[1728507755690,0.1185462,2363.4,2362.9,0.55]
[1728507756289,0.1185462,2363.4,2363.0,0.08461912]
[1728507756529,0.1185462,2363.4,2363.1,0.55]
[1728507756908,0.1185462,2363.4,2362.9,0.55]
[1728507757290,0.1185462,2363.4,2363.1,0.55]
[1728507757592,0.1185462,2363.4,2362.9,0.55]
[1728507758012,0.1185462,2363.4,2363.0,3.05728541]
[1728507758204,0.1185462,2363.4,2363.1,0.60725667]
[1728507758409,0.1185462,2363.4,2363.3,5.1781]
[1728507758636,0.1185462,2363.4,2363.3,1.6281]
[1728507759428,0.1185462,2363.4,2363.3,2.1781]
[1728507759637,0.1185462,2363.4,2363.3,1.6281]
[1728507760268,3.0,2365.1,2364.5,4.22906]
[1728507760269,4.22816,2365.1,2364.5,4.22906]
[1728507760550,4.22717,2365.7,2364.9,0.55]
[1728507760704,0.1185462,2365.8,2365.2,1.6281]
[1728507760897,0.1185462,2365.8,2364.7,1.69154482]
[1728507761103,0.1185462,2365.8,2364.9,0.55]
[1728507761343,4.22809,2365.2,2364.8,0.55]
[1728507761507,4.22809,2365.2,2363.9,1.6439]
[1728507761508,4.22868,2364.8,2363.9,1.6439]
[1728507761707,0.422809,2365.1,2364.0,0.55]
[1728507762013,0.422809,2365.1,2364.4,0.55]
[1728507762014,4.22817,2365.1,2364.4,0.55]
[1728507762232,4.22817,2365.1,2364.6,0.55]
[1728507762438,4.22843,2365.0,2364.6,0.55]
[1728507762632,4.22754,2365.5,2364.8,0.55]
[1728507762961,4.22765,2365.4,2364.9,0.08455642]
[1728507763473,4.22911,2364.6,2363.9,1.5645]
[1728507763663,1.526,2364.8,2363.9,1.5645]
[1728507763831,4.22967,2364.3,2363.9,1.5645]
[1728507764156,4.22837,2365.0,2363.9,1.5645]
[1728507764157,4.22805,2365.2,2364.0,17.54961145]
[1728507764361,1.5625,2365.3,2363.9,1.5645]
[1728507764362,4.22931,2364.5,2363.9,1.5645]
[1728507764531,4.22941,2364.4,2363.9,1.5645]
[1728507764737,4.22941,2364.4,2364.0,13.234921]
[1728507765219,1.5625,2365.3,2364.1,0.55]
[1728507765426,4.22935,2364.5,2364.0,13.234921]
[1728507765769,0.579016,2365.2,2363.5,1.5943]
[1728507765933,4.22938,2364.5,2363.5,1.5943]
[1728507766258,4.22951,2364.4,2363.6,4.31528165]
[1728507766425,4.2296,2364.3,2363.6,4.31528165]
[1728507766620,4.2296,2364.3,2363.7,14.197561]
[1728507766826,4.22976,2364.2,2363.7,14.197561]
[1728507767023,4.23016,2364.0,2363.7,14.197561]
[1728507767252,4.23016,2364.0,2363.6,32.858774]
[1728507767253,4.23047,2363.8,2363.6,32.858774]
[1728507767565,4.23041,2363.9,2363.6,32.858774]
[1728507767720,4.23016,2364.0,2363.6,32.858774]
[1728507767922,4.23049,2363.8,2363.6,32.858774]
[1728507768122,4.23016,2364.0,2363.6,32.858774]
[1728507768563,4.23031,2363.9,2363.5,1.5943]
[1728507768975,4.23031,2363.9,2363.0,1.6045]
[1728507768976,4.23134,2363.4,2363.0,1.6045]
[1728507769269,0.845911,2364.3,2363.0,1.6045]
[1728507769270,4.23085,2363.6,2363.0,1.6045]
[1728507769562,4.23113,2363.5,2363.0,1.6045]
[1728507769719,4.23129,2363.4,2362.7,4.23241]
[1728507769923,4.22979,2364.2,2362.6,1.5387]
[1728507769924,4.23148,2363.3,2362.6,1.5387]
[1728507770178,4.23014,2364.0,2362.7,4.58314122]
[1728507770331,4.23041,2363.9,2362.8,1.5096]
[1728507770529,4.23075,2363.7,2362.9,4.23195]
[1728507770767,0.845911,2364.3,2363.0,0.53904268]
[1728507770953,8.46011,2364.1,2362.8,6.28085268]
[1728507771266,4.23041,2363.9,2363.2,0.55]
[1728507771469,8.46082,2363.9,2363.2,4.78154]
[1728507771767,4.23022,2364.0,2362.9,7.23195]
[1728507771977,5.075521,2364.3,2363.0,4.78188]
[1728507771978,8.46141,2363.7,2363.0,4.78188]
[1728507772474,3.46107,2363.9,2363.0,4.78188]
[1728507772672,5.075521,2364.3,2363.0,4.902343]
[1728507772826,4.22978,2364.2,2363.1,4.23169]
[1728507773028,4.23021,2364.0,2363.3,4.23121]
[1728507773257,4.23021,2364.0,2363.4,0.08441484]
[1728507773570,4.23069,2363.7,2363.0,7.78179]
[1728507773726,4.22982,2364.2,2363.0,0.55]
[1728507773928,4.2311,2363.5,2363.0,0.55]
[1728507774127,4.23084,2363.6,2362.9,0.55]
[1728507774352,4.23084,2363.6,2363.0,0.02978664]
[1728507774536,4.23108,2363.5,2362.9,0.55]
[1728507774747,4.23146,2363.3,2362.8,1.5096]
[1728507774951,4.23146,2363.3,2362.4,8.87948449]
[1728507774952,4.23208,2362.9,2362.4,1.58850327]
[1728507775236,0.423146,2363.3,2362.4,1.58850327]
[1728507775237,4.23158,2363.2,2362.5,4.23266]
[1728507775433,4.23158,2363.2,2362.5,4.77170268]
[1728507775670,4.23153,2363.3,2362.5,4.77170268]
[1728507775876,4.23055,2363.8,2362.9,4.23195]
[1728507775877,4.23049,2363.8,2362.9,4.23195]
[1728507776072,4.23086,2363.6,2362.9,8.46394]
[1728507776371,8.46108,2363.8,2363.1,4.23172]
[1728507776681,4.23073,2363.7,2363.1,4.23172]
[1728507776845,4.23073,2363.7,2362.9,4.23195]
[1728507776846,4.23112,2363.5,2363.0,0.55]
[1728507777049,4.2313,2363.4,2362.6,4.86851059]
[1728507777245,4.2313,2363.4,2362.8,4.23224]
[1728507777476,4.23157,2363.2,2362.6,0.63602059]
[1728507777791,4.23157,2363.2,2362.4,1.525]
[1728507777792,4.23191,2363.0,2362.4,1.525]
[1728507777970,4.23191,2363.0,2362.0,1.6151]
[1728507777971,0.846357,2363.0,2362.0,1.6151]
[1728507778141,4.23268,2362.6,2362.1,0.08466197]
[1728507778336,1.6331,2363.3,2362.1,0.08466197]
[1728507778563,4.23218,2362.9,2362.1,0.08466197]
[1728507778751,4.23218,2362.9,2362.2,4.23324]
[1728507778948,1.6331,2363.3,2362.0,1.6151]
[1728507779173,4.23283,2362.5,2362.0,1.6151]
[1728507779344,4.23313,2362.4,2362.0,1.6151]
[1728507779672,4.23283,2362.5,2362.1,0.08466107]
[1728507779876,4.23255,2362.7,2362.0,1.6151]
[1728507780374,4.81801,2363.2,2362.0,1.6151]
[1728507780580,0.645111,2363.1,2362.1,0.08465508]
[1728507780781,3.47362231,2363.9,2362.2,4.23322]
[1728507780782,3.0,2363.9,2362.2,4.23322]
[1728507780979,3.0,2363.9,2362.3,0.08463994]
[1728507781288,1.6102,2363.7,2362.4,4.23286]
[1728507781581,1.6102,2363.7,2362.6,4.2325]
[1728507781875,1.6102,2363.7,2362.4,4.31752878]
[1728507781876,4.23106,2363.5,2362.2,8.81636122]
[1728507782187,4.23155,2363.2,2362.0,1.6151]
[1728507782371,0.423106,2363.4,2362.1,0.04746083]
[1728507782690,4.23155,2363.2,2362.1,0.08465715]
[1728507783181,0.423106,2363.4,2362.1,0.08465715]
[1728507783381,4.654446,2363.4,2362.1,7.31817715]
[1728507783587,4.654446,2363.4,2362.1,4.42853096]
[1728507783588,5.1199476,2363.3,2362.1,4.42853096]
[1728507783748,0.8885576,2363.3,2362.1,4.42853096]
[1728507783951,0.8885576,2363.3,2362.2,0.55]
[1728507784151,4.23113,2363.5,2362.3,0.08464602]
[1728507784970,4.23125,2363.4,2362.3,0.08464602]
[1728507785176,4.23113,2363.5,2362.3,0.08464602]
[1728507785493,4.23113,2363.5,2362.2,4.78332]
[1728507785494,4.23189,2363.1,2362.2,0.55]
[1728507785795,1.5413,2362.9,2362.0,1.6151]
[1728507785950,1.5413,2362.9,2361.6,1.6533]
[1728507785951,4.23263,2362.6,2361.6,1.6533]
[1728507786149,4.2331,2362.4,2361.6,1.6533]
[1728507786458,4.23345,2362.2,2361.2,1.6533]
[1728507786644,4.22932,2364.5,2363.0,1.6533]
[1728507786846,1.5413,2364.8,2363.5,1.6533]
[1728507787089,0.44206907,2364.4,2363.6,0.59478122]
[1728507787274,2.16251014,2364.8,2363.6,4.82561122]
[1728507787478,4.22962,2364.3,2363.5,1.6533]
[1728507787882,4.22997,2364.1,2363.5,1.6533]
[1728507788088,4.23031,2363.9,2362.9,5.2033]
[1728507788397,4.22997,2364.1,2362.9,5.2033]
[1728507788582,4.23029,2363.9,2362.9,5.2033]
[1728507788896,4.807449,2363.9,2362.9,5.2033]
[1728507789098,4.23012,2364.0,2363.1,0.55]
[1728507789454,4.23004,2364.1,2363.0,0.55]
[1728507789669,4.23004,2364.1,2363.0,0.63461691]
[1728507789993,4.23004,2364.1,2363.0,0.55]
[1728507790523,4.2302,2364.0,2362.9,1.6533]
[1728507790810,4.23058,2363.8,2362.9,1.6533]
[1728507791109,4.23005,2364.1,2363.0,0.63462552]
[1728507794282,4.23128,2363.4,2362.5,1.6533]
[1728507794481,4.23194,2363.0,2362.5,1.6533]
[1728507794730,8.4638,2363.1,2362.5,1.6533]
[1728507794894,1.000353,2363.4,2362.5,1.6533]
[1728507794895,4.23149,2363.3,2362.5,1.6533]
[1728507795286,4.2317,2363.2,2362.5,1.6533]
[1728507796324,8.46335,2363.2,2362.5,1.6533]
[1728507796698,4.23178,2363.1,2362.5,1.6533]
[1728507797094,8.46336,2363.2,2362.5,1.6533]
[1728507797308,4.23177,2363.1,2362.5,1.6533]
[1728507797642,4.23226,2362.8,2362.3,0.06350096]
[1728507797940,4.23226,2362.8,2361.8,0.86212688]
[1728507797941,4.23383,2362.0,2361.8,0.86212688]
[1728507798143,4.44528348,2364.5,2363.1,0.9843]
[1728507798300,4.2296,2364.3,2363.2,0.08444453]
[1728507798503,4.2296,2364.3,2363.2,0.61449798]
[1728507798733,4.23006,2364.1,2363.2,0.53005345]
[1728507798935,4.23078,2363.7,2363.1,1.06891938]
[1728507799112,4.23084,2363.6,2363.1,1.06891938]
[1728507799312,4.23084,2363.6,2363.1,0.9843]
[1728507799647,4.2312,2363.4,2363.1,0.9843]
[1728507800148,4.23101,2363.5,2363.1,0.9843]
[1728507800303,4.23122,2363.4,2363.1,0.9843]
[1728507800504,4.23084,2363.6,2363.1,0.9843]
[1728507801331,8.46181,2363.6,2363.1,0.9843]
[1728507801517,4.23104,2363.5,2363.1,0.9843]
[1728507801714,4.23084,2363.6,2363.1,0.9843]
[1728507802629,8.46176,2363.6,2363.1,0.9843]
[1728507802839,4.23084,2363.6,2363.1,0.9843]
[1728507803142,4.23111,2363.5,2363.1,0.9843]
[1728507803445,4.23122,2363.4,2363.1,0.9843]
[1728507803603,4.23122,2363.4,2362.7,2.0782]
[1728507803804,4.23224,2362.9,2362.6,3.0]
[1728507804148,4.23128,2363.4,2362.6,3.08464635]
[1728507804304,4.23147,2363.3,2362.6,3.08464635]
[1728507804512,4.23176,2363.1,2362.7,0.08462925]
[1728507804713,4.23155,2363.2,2362.7,0.08462925]
[1728507805050,4.23175,2363.1,2362.7,0.08462925]
[1728507805745,4.23175,2363.1,2362.6,3.0]
[1728507806078,4.23209,2362.9,2362.6,3.0]
[1728507806606,8.46432,2362.9,2362.6,3.0]
[1728507806807,4.23228,2362.8,2362.6,3.0]
[1728507807202,4.23209,2362.9,2362.6,3.0]
[1728507807543,4.23235,2362.8,2362.6,2.79216001]
[1728507808053,4.23137,2363.3,2362.3,2.0782]
[1728507808345,4.23272,2362.6,2361.9,1.6533]
[1728507808581,4.23298,2362.4,2361.9,1.6533]
[1728507809051,4.23334,2362.2,2361.9,1.6533]
[1728507809341,4.23318,2362.3,2361.9,1.6533]
[1728507809549,4.23355,2362.1,2361.9,1.6533]
[1728507809705,4.23398,2361.9,2361.3,1.6533]
[1728507809907,4.23398,2361.9,2361.4,0.08467548]
[1728507810141,4.23398,2361.9,2361.4,0.4249]
[1728507810845,8.46801,2361.9,2361.5,0.55]
[1728507811047,8.46801,2361.9,2361.4,0.4249]
[1728507811048,1.5413,2362.6,2361.4,0.4249]
[1728507811209,4.23437,2361.7,2361.3,1.6533]
[1728507811411,4.23404,2361.9,2361.4,0.08468592]
[1728507811715,4.23405,2361.8,2361.4,0.08468592]
[1728507811919,4.23404,2361.9,2361.4,0.08468592]
[1728507812111,4.23329,2362.3,2361.4,0.08468592]
[1728507812306,4.23329,2362.3,2361.5,4.23459]
[1728507812506,4.23329,2362.3,2361.6,0.08466321]
[1728507812821,4.2325,2362.7,2362.0,0.55]
[1728507813034,4.23217,2362.9,2362.2,0.55]
[1728507813245,4.23327,2362.3,2362.0,0.55]
[1728507813544,4.23327,2362.3,2362.0,0.0846607]
[1728507813545,4.23335,2362.2,2362.0,0.0846607]
[1728507813705,4.23327,2362.3,2362.0,0.08466573]
[1728507813904,4.23292,2362.5,2362.1,0.55]
[1728507814141,4.23292,2362.5,2362.2,0.08465512]
[1728507814363,4.23191,2363.0,2362.3,0.55]
[1728507814508,4.23146,2363.3,2362.5,0.55]
[1728507814846,4.23205,2363.0,2362.7,0.55]
[1728507815007,4.23205,2363.0,2362.5,0.55]
[1728507815214,4.23205,2363.0,2362.5,1.10821]
[1728507815552,1.6436,2363.7,2362.5,0.55]
[1728507815708,4.23223,2362.9,2362.5,0.55]
[1728507816195,4.23193,2363.0,2362.5,0.55]
[1728507816656,1.6436,2363.7,2362.7,0.55]
[1728507816860,1.26739025,2363.1,2362.9,0.55]
[1728507817154,4.23155,2363.2,2362.9,0.55]
[1728507817451,4.23155,2363.2,2362.8,1.5056]
[1728507818152,4.23174,2363.1,2362.8,1.5056]
[1728507818452,4.23208,2362.9,2362.8,1.5056]
[1728507818747,4.23208,2362.9,2362.5,1.69693268]
[1728507819054,4.23232,2362.8,2362.5,1.69693268]
[1728507819218,4.23262,2362.6,2362.5,1.6123]
[1728507819726,4.23251,2362.7,2362.1,1.69695218]
[1728507819938,4.23289,2362.5,2362.1,1.69695218]
[1728507820264,4.23186,2363.1,2362.3,4.58314122]
[1728507820474,4.23148,2363.3,2362.4,4.78429201]
[1728507820654,4.23148,2363.3,2362.6,4.23253]
[1728507820961,4.23148,2363.3,2362.8,0.55]
[1728507820962,4.23155,2363.2,2362.8,0.55]
[1728507821178,2.49302683,2363.9,2362.5,4.5521]
[1728507821179,4.23175,2363.1,2362.6,0.55]
[1728507821546,8.46359,2363.1,2362.6,0.55]
[1728507821845,4.23102,2363.5,2362.5,1.5521]
[1728507821846,4.23238,2362.8,2362.5,1.5521]
[1728507822046,4.23262,2362.6,2362.5,1.5521]
[1728507822270,8.46481,2362.8,2362.5,1.5521]
[1728507822478,4.23105,2363.5,2362.6,4.6677783]
[1728507822623,2.95992891,2363.8,2362.6,4.6677783]
[1728507822624,4.2313,2363.4,2362.6,5.22112409]
[1728507822820,4.23168,2363.2,2362.7,1.52386341]
[1728507823046,4.23168,2363.2,2362.6,0.55]
[1728507823362,4.23183,2363.1,2362.6,0.55]
[1728507824330,4.23168,2363.2,2362.7,0.08463253]
[1728507824520,4.23168,2363.2,2362.6,0.55]
[1728507824727,4.23168,2363.2,2362.7,0.08463075]
[1728507824962,4.23168,2363.2,2362.7,0.30330383]
[1728507825169,4.23182,2363.1,2362.7,0.21867308]
[1728507825541,4.23169,2363.2,2362.7,0.21867308]
[1728507825939,4.23192,2363.0,2362.7,0.21867308]
[1728507826138,4.23168,2363.2,2362.7,0.21867308]
[1728507826478,4.23164,2363.2,2362.7,0.21867308]
[1728507826634,4.23164,2363.2,2362.8,0.0837373]
[1728507827152,8.4633,2363.2,2362.8,0.0837373]
[1728507827464,4.23182,2363.1,2362.8,0.0837373]
[1728507827672,0.84492683,2363.6,2362.8,6.19924122]
[1728507827859,2.11500207,2364.1,2363.1,0.55]
[1728507828189,2.12367929,2364.5,2363.5,4.781]
[1728507828190,4.22985,2364.2,2363.5,4.781]
[1728507828387,4.22994,2364.1,2363.7,0.55]
[1728507828681,4.23014,2364.0,2363.7,0.55]
[1728507828879,8.45999,2364.1,2363.7,0.55]
[1728507829041,4.22994,2364.1,2363.7,0.55]
[1728507829242,4.22994,2364.1,2363.5,0.55]
[1728507829484,4.22994,2364.1,2363.7,0.55]
[1728507829691,8.45998,2364.1,2363.7,0.55]
[1728507829897,8.45999,2364.1,2363.7,0.55]
[1728507830044,4.22994,2364.1,2363.7,0.55]
[1728507830600,0.84492683,2364.9,2363.9,2.1359]
[1728507830742,4.22817,2365.1,2364.2,4.22965]
[1728507830940,4.22859,2364.9,2364.5,0.55]
[1728507831145,4.2278,2365.3,2364.4,1.5859]
[1728507831444,4.22913,2364.6,2364.4,1.3359]
[1728507831871,4.22834,2365.0,2364.1,0.55]
[1728507832082,4.2295,2364.4,2363.8,0.55]
[1728507832263,4.2295,2364.4,2363.8,0.9749]
[1728507832264,8.45907,2364.4,2363.8,0.9749]
[1728507832585,4.2295,2364.4,2363.8,1.18963874]
[1728507832756,8.459,2364.4,2363.8,1.18963874]
[1728507832958,4.2295,2364.4,2363.8,1.18963874]
[1728507833260,4.2295,2364.4,2363.8,2.07948541]
[1728507833650,1.5628,2364.8,2363.5,0.06347448]
[1728507833849,4.22968,2364.3,2363.5,0.06347448]
[1728507834163,4.22968,2364.3,2363.6,0.08459319]
[1728507834543,4.22887,2364.7,2363.7,1.5509]
[1728507834743,4.23022,2364.0,2363.7,1.5509]
[1728507834990,8.4605,2364.0,2363.7,1.5509]
[1728507835666,4.22986,2364.2,2363.8,0.0698863]
[1728507835863,4.22987,2364.2,2363.8,0.04111305]
[1728507836099,4.22925,2364.5,2363.8,0.04111305]
[1728507836319,4.23062,2363.8,2363.4,1.6635]
[1728507836454,4.23036,2363.9,2363.0,2.0884]
[1728507836653,8.46189,2363.6,2363.0,1.6635]
[1728507836953,4.23091,2363.6,2363.0,1.6635]
[1728507837190,4.23111,2363.5,2363.0,2.0884]
[1728507837407,4.23122,2363.4,2363.0,1.6635]
[1728507837700,4.23166,2363.2,2363.0,1.6635]
[1728507837893,8.46334,2363.2,2363.0,1.6635]
[1728507838053,4.23172,2363.1,2363.0,1.6635]
[1728507838252,4.23126,2363.4,2363.0,1.6635]
[1728507838576,4.23126,2363.4,2363.1,0.0846149]
[1728507838769,4.23142,2363.3,2363.1,0.0846149]
[1728507839383,4.23126,2363.4,2363.1,0.0846149]
[1728507839592,4.23052,2363.8,2363.0,1.6635]
[1728507839593,4.23166,2363.2,2363.0,1.6635]
[1728507839762,8.46155,2363.7,2363.0,5.89531]
[1728507839955,4.23076,2363.7,2363.1,0.08461274]
[1728507840395,4.23043,2363.9,2363.1,4.31621274]
[1728507840578,4.23043,2363.9,2363.2,3.0]
[1728507840784,4.7103117,2364.4,2363.0,3.26469091]
[1728507840785,4.23058,2363.8,2363.0,3.26469091]
[1728507841097,4.23016,2364.0,2363.4,4.23118]
[1728507841310,4.22989,2364.2,2363.5,0.63460075]
[1728507841511,4.22911,2364.6,2364.0,4.23006]
[1728507841802,0.422834,2364.9,2364.1,0.08457927]
[1728507841803,4.22943,2364.4,2364.1,0.08457927]
[1728507841956,4.22917,2364.6,2363.9,4.23017]
[1728507842151,8.45832,2364.6,2364.0,0.63458357]
[1728507842513,4.22933,2364.5,2364.0,0.55]
[1728507842708,4.22952,2364.4,2364.1,0.08458376]
[1728507842868,4.2295,2364.4,2363.9,0.55]
[1728507843063,8.459,2364.4,2364.0,0.08458743]
[1728507843325,4.2295,2364.4,2364.0,0.08458743]
[1728507843600,4.22958,2364.3,2364.0,0.08458743]
[1728507843908,4.22949,2364.4,2364.0,0.08458743]
[1728507844791,8.45903,2364.4,2364.0,0.08458743]
[1728507844961,8.45898,2364.4,2364.0,0.08458743]
[1728507845362,4.22847,2365.0,2364.2,4.22966]
[1728507845564,4.22847,2365.0,2364.0,0.66753825]
[1728507845565,4.22858,2364.9,2364.3,2.25527484]
[1728507845809,4.22967,2364.3,2363.8,5.78985]
[1728507845973,8.45889,2364.4,2364.0,0.08457614]
[1728507846169,1.5439,2365.6,2364.5,0.55]
[1728507846526,4.22819,2365.1,2364.8,1.5594]
[1728507846680,4.22806,2365.2,2364.8,1.5594]
[1728507846871,4.2285,2364.9,2364.8,1.5594]
[1728507847067,4.2285,2364.9,2364.4,2.092]
[1728507847068,4.22875,2364.8,2364.4,2.092]
[1728507847487,4.2289,2364.7,2364.4,2.092]
[1728507847690,4.2289,2364.7,2364.4,1.542]
[1728507847691,4.22906,2364.6,2364.4,1.542]
[1728507847909,4.46632268,2365.5,2364.4,1.542]
[1728507848067,4.46632268,2365.5,2364.1,0.20752079]
[1728507848068,4.22922,2364.5,2364.1,0.20752079]
[1728507848464,4.22922,2364.5,2364.0,1.5783]
[1728507848868,4.22908,2364.6,2364.1,0.08458667]
[1728507849266,8.458,2364.7,2364.0,5.80827]
[1728507849469,4.22886,2364.7,2364.0,5.80827]
[1728507849904,4.22923,2364.5,2364.0,5.80827]
[1728507850317,0.60102227,2365.4,2364.0,5.80827]
[1728507850318,0.60102227,2365.4,2364.1,4.84325595]
[1728507850521,0.60102227,2365.4,2364.3,0.55]
[1728507850522,4.22856,2364.9,2364.3,0.55]
[1728507850681,8.45658,2365.1,2364.5,4.77909]
[1728507850994,8.45587,2365.3,2364.7,0.55]
[1728507851207,4.22798,2365.2,2364.8,0.08456198]
[1728507851392,0.23888268,2365.5,2364.7,6.40915]
[1728507851393,4.22825,2365.1,2364.7,6.40915]
[1728507851573,4.22825,2365.1,2364.7,1.6303]
[1728507851768,4.22864,2364.9,2364.7,1.6303]
[1728507852000,4.22864,2364.9,2364.4,4.77937]
[1728507852195,4.22864,2364.9,2364.5,0.08457503]
[1728507852396,4.22888,2364.7,2364.0,1.6303]
[1728507852614,4.2297,2364.3,2364.0,1.6303]
[1728507852827,4.22913,2364.6,2364.1,0.08458971]
[1728507853175,4.22893,2364.7,2364.1,4.31448971]
[1728507853405,4.22862,2364.9,2364.3,4.22947]
[1728507853751,4.22846,2365.0,2364.5,4.22913]
[1728507853884,4.22846,2365.0,2364.4,0.50751633]
[1728507853885,1.6198,2365.6,2364.8,0.55]
[1728507854091,4.22812,2365.2,2364.8,0.55]
[1728507854821,4.22781,2365.3,2364.8,0.6345623]
[1728507855114,4.22781,2365.3,2364.8,0.63456197]
[1728507855318,4.22753,2365.5,2365.0,0.55]
[1728507855531,4.22753,2365.5,2365.2,0.55]
[1728507856180,8.45507,2365.5,2365.2,0.55]
[1728507856399,4.22753,2365.5,2365.2,0.55]
[1728507856907,4.22728,2365.6,2365.2,0.55]
[1728507857216,4.22717,2365.7,2365.3,0.08454671]
[1728507857524,4.22761,2365.4,2365.1,0.55]
[1728507857892,4.22761,2365.4,2365.0,3.55]
[1728507858095,0.1185462,2365.8,2365.0,3.55]
[1728507858315,8.45479,2365.6,2365.0,3.55]
[1728507858521,4.22777,2365.4,2365.0,3.55]
[1728507859229,8.45477,2365.6,2365.0,4.35010562]
[1728507859439,0.1185462,2365.8,2365.3,0.55]
[1728507859617,4.22746,2365.5,2365.0,4.35010562]
[1728507860517,4.22746,2365.5,2365.2,0.55]
[1728507860856,0.1185462,2365.8,2365.0,0.55]
[1728507860994,0.1185462,2365.8,2364.7,6.46097643]
[1728507860995,4.22868,2364.8,2364.7,0.21540643]
[1728507861192,4.22803,2365.2,2364.3,1.5899]
[1728507861507,4.22865,2364.9,2364.5,4.22922]
[1728507861698,4.22847,2365.0,2364.5,4.22913]
[1728507861896,4.22882,2364.8,2364.3,5.81936]
[1728507862401,4.22868,2364.8,2364.4,3.0]
[1728507863320,4.22868,2364.8,2364.5,0.55]
[1728507863493,4.22844,2365.0,2364.5,0.55]
[1728507863494,4.22863,2364.9,2364.5,0.55]
[1728507864018,4.22807,2365.2,2364.7,0.55]
[1728507864331,5.80713,2365.6,2365.1,0.55]
[1728507864332,4.22744,2365.5,2365.1,0.55]
[1728507864534,4.22752,2365.5,2365.1,0.55]
[1728507864736,4.2274,2365.6,2365.1,4.77813]
[1728507864935,4.2274,2365.6,2365.3,0.55]
[1728507865538,0.1185462,2365.8,2365.3,0.55]
[1728507865739,4.22736,2365.6,2365.3,0.55]
[1728507865898,4.22736,2365.6,2365.1,4.22805]
[1728507865899,4.22743,2365.5,2365.1,0.55]
[1728507866298,4.22736,2365.6,2365.1,0.55]
[1728507866534,8.45477,2365.6,2365.1,0.55]
[1728507866734,4.22736,2365.6,2365.1,0.55]
[1728507867209,4.22745,2365.5,2365.1,0.55]
[1728507867543,4.22727,2365.6,2365.1,4.77813]
[1728507867908,4.22727,2365.6,2365.0,1.6615]
[1728507867909,4.22732,2365.6,2365.0,1.6615]
[1728507868125,4.3455462,2365.8,2365.2,4.22784]
[1728507868324,4.22718,2365.7,2365.3,0.55]
[1728507868503,4.22734,2365.6,2365.1,4.77807]
[1728507869252,4.22754,2365.5,2365.1,0.55]
[1728507869487,4.22726,2365.6,2365.1,4.77812]
[1728507869790,4.22721,2365.7,2365.3,0.55]
[1728507870141,4.22721,2365.7,2365.3,4.77779]